bitfinex/quotes_BTCUSD_20260221
["timestamp","ask_amount","ask_price","bid_price","bid_amount"]
[1771695183725,0.0002347,68352.0,68347.0,0.073156]
[1771695183927,0.0002347,68352.0,68345.0,0.07315717]
[1771695184186,0.0002347,68352.0,68340.0,0.09620396]
[1771695184358,0.0002347,68352.0,68344.0,0.07315837]
[1771695184505,0.07315992,68344.0,68340.0,0.00016]
[1771695184712,0.07315992,68344.0,68335.0,0.07316808]
[1771695184948,0.07315992,68344.0,68336.0,0.07316787]
[1771695185370,0.09607864,68344.0,68336.0,0.07316787]
[1771695188520,0.09607864,68344.0,68337.0,0.07316668]
[1771695188873,0.09607864,68344.0,68336.0,0.07316755]
[1771695191222,0.09607864,68344.0,68332.0,0.29290632]
[1771695191223,0.09698482,68341.0,68333.0,0.07317043]
[1771695191622,0.02382152,68341.0,68333.0,0.07317043]
[1771695191984,0.09698421,68341.0,68333.0,0.07317043]
[1771695192616,0.02382152,68341.0,68332.0,0.00022]
[1771695192815,0.07316359,68340.0,68332.0,0.07339212]
[1771695194151,0.07316488,68339.0,68333.0,0.00022]
[1771695194348,0.09698547,68340.0,68333.0,0.00022]
[1771695194560,0.15480235,68344.0,68326.0,0.00022]
[1771695194561,0.0002,68344.0,68326.0,0.00022]
[1771695194774,0.0002,68344.0,68315.0,0.00013]
[1771695194775,0.02382152,68328.0,68315.0,0.00013]
[1771695194981,0.07318073,68324.0,68317.0,0.07318749]
[1771695195208,0.00016,68330.0,68315.0,0.00013]
[1771695195413,0.00016,68330.0,68326.0,0.07317788]
[1771695195616,0.07333477,68330.0,68322.0,0.07318205]
[1771695196928,0.00016,68330.0,68322.0,0.07318205]
[1771695197074,0.00016,68330.0,68324.0,0.07317983]
[1771695197706,0.00016,68330.0,68323.0,0.07318151]
[1771695197911,0.07316861,68336.0,68328.0,0.0731763]
[1771695198182,0.07316971,68335.0,68327.0,0.07317721]
[1771695198843,0.07316971,68335.0,68328.0,0.07317619]
[1771695199449,0.0731682,68336.0,68328.0,0.07317619]
[1771695200323,0.17576,68337.0,68328.0,0.07317619]
[1771695200647,0.07329111,68338.0,68328.0,0.02410756]
[1771695200648,0.0001247,68338.0,68328.0,0.02410756]
[1771695200950,0.0001247,68338.0,68331.0,0.07317232]
[1771695201560,0.07316754,68337.0,68330.0,0.07317398]
[1771695201759,0.07329114,68338.0,68330.0,0.07317398]
[1771695201962,0.07329114,68338.0,68331.0,0.0731729]
[1771695202513,0.0001247,68338.0,68332.0,0.07317202]
[1771695202731,0.0001247,68338.0,68331.0,0.07317292]
[1771695203422,0.0001247,68338.0,68332.0,0.07317176]
[1771695204169,0.0001247,68338.0,68331.0,0.07317314]
[1771695204352,0.0001247,68338.0,68332.0,0.07317205]
[1771695206663,0.0001247,68338.0,68331.0,0.07317289]
[1771695206987,0.0001247,68338.0,68330.0,0.07317398]
[1771695207438,0.0001247,68338.0,68331.0,0.07317307]
[1771695208166,0.0001247,68338.0,68332.0,0.07317195]
[1771695208369,0.0001247,68338.0,68333.0,0.07317091]
[1771695208591,0.0001247,68338.0,68334.0,0.07316978]
[1771695208971,0.0003247,68338.0,68335.0,0.07316823]
[1771695210247,0.0003247,68338.0,68335.0,0.07416823]
[1771695210446,0.0003247,68338.0,68334.0,0.07316969]
[1771695210650,0.0003247,68338.0,68332.0,0.0733914]
[1771695210651,0.0003247,68338.0,68336.0,0.07316719]
[1771695211719,0.00016,68340.0,68337.0,0.0731668]
[1771695211927,0.0005894,68344.0,68335.0,0.001]
[1771695212251,0.0005894,68344.0,68339.0,0.07316393]
[1771695212645,0.0005894,68344.0,68340.0,0.07316336]
[1771695213865,0.0005894,68344.0,68339.0,0.07316442]
[1771695214048,0.0005894,68344.0,68340.0,0.0731628]
[1771695215404,0.0005894,68344.0,68339.0,0.07316434]
[1771695221598,0.02336207,68344.0,68339.0,0.07316434]
[1771695222761,0.02336207,68344.0,68339.0,0.07338434]
[1771695224665,0.0001222,68351.0,68339.0,0.00022]
[1771695224823,0.02289487,68351.0,68340.0,0.00016]
[1771695225220,0.02289487,68351.0,68347.0,0.07315542]
[1771695225606,0.02289487,68351.0,68345.0,0.07315788]
[1771695225819,0.02289487,68351.0,68344.0,0.073159]
[1771695226633,0.02289487,68351.0,68345.0,0.07315721]
[1771695227033,0.02289487,68351.0,68344.0,0.07315721]
[1771695227643,0.02289487,68351.0,68346.0,0.07315692]
[1771695227825,0.02289487,68351.0,68345.0,0.07315808]
[1771695228433,0.02289487,68351.0,68346.0,0.07315715]
[1771695228830,0.02289487,68351.0,68347.0,0.07315608]
[1771695229041,0.02289487,68351.0,68348.0,0.0731548]
[1771695229257,0.0003222,68351.0,68348.0,0.07301095]
[1771695229877,0.0003222,68351.0,68346.0,0.07315715]
[1771695230083,0.0003222,68351.0,68347.0,0.0731561]
[1771695230754,0.0003222,68351.0,68348.0,0.07315481]
[1771695231186,0.0003222,68351.0,68348.0,0.07415481]
[1771695231391,0.0003222,68351.0,68349.0,0.0731539]
[1771695233004,0.0003222,68351.0,68349.0,0.0741539]
[1771695234325,0.0003222,68351.0,68349.0,0.0731539]
[1771695234709,0.0003222,68351.0,68349.0,0.0741539]
[1771695234912,0.0003222,68351.0,68348.0,0.07315474]
[1771695235374,0.0003222,68351.0,68349.0,0.001]
[1771695235525,0.0003222,68351.0,68348.0,0.07315474]
[1771695235915,0.0003222,68351.0,68349.0,0.001]
[1771695236131,0.0003222,68351.0,68348.0,0.07315474]
[1771695237671,0.0003222,68351.0,68348.0,0.07415474]
[1771695240707,0.0003222,68351.0,68348.0,0.07315474]
[1771695241082,0.0003222,68351.0,68348.0,0.07415474]
[1771695241400,0.0003222,68351.0,68348.0,0.07315474]
[1771695241763,0.0003222,68351.0,68348.0,0.07415474]
[1771695242279,0.0003222,68351.0,68349.0,0.07315333]
[1771695249434,0.0003222,68351.0,68349.0,0.07415333]
[1771695250129,0.0003222,68351.0,68350.0,0.07315288]
[1771695252077,0.0003222,68351.0,68350.0,0.07415288]
[1771695252677,0.0003222,68351.0,68350.0,0.001]
[1771695253302,0.02458387,68351.0,68344.0,0.07315861]
[1771695253590,0.02458387,68351.0,68342.0,0.29264581]
[1771695253788,0.02458387,68351.0,68346.0,0.07315629]
[1771695254017,0.02458387,68351.0,68350.0,0.002]
[1771695254330,0.02458387,68351.0,68350.0,0.001]
[1771695254541,0.02458387,68351.0,68346.0,0.07315629]
[1771695255315,0.02458387,68351.0,68350.0,0.001]
[1771695256691,0.02458387,68351.0,68346.0,0.07315629]
[1771695257245,0.02458387,68351.0,68342.0,0.29264581]
[1771695257424,0.02458387,68351.0,68346.0,0.07315647]
[1771695257614,0.02458387,68351.0,68350.0,0.001]
[1771695258013,0.02458387,68351.0,68346.0,0.07315647]
[1771695258369,0.02458387,68351.0,68347.0,0.07315577]
[1771695259957,0.02458387,68351.0,68350.0,0.001]
[1771695260374,0.02458387,68351.0,68347.0,0.07315577]
[1771695260719,0.02458387,68351.0,68347.0,0.07415577]
[1771695260912,0.02458387,68351.0,68347.0,0.07315577]
[1771695261119,0.02458387,68351.0,68346.0,0.07315682]
[1771695261249,0.02458387,68351.0,68350.0,0.001]
[1771695261454,0.02458387,68351.0,68346.0,0.07315682]
[1771695262117,0.02458387,68351.0,68347.0,0.07315536]
[1771695262678,0.02458387,68351.0,68347.0,0.07337536]
[1771695263528,0.02458387,68351.0,68350.0,0.001]
[1771695263738,0.02458387,68351.0,68346.0,0.07315682]
[1771695264807,0.02458387,68351.0,68350.0,0.001]
[1771695265002,0.02458387,68351.0,68346.0,0.07315682]
[1771695266438,0.02458387,68351.0,68346.0,0.07415682]
[1771695266975,0.02458387,68351.0,68346.0,0.07315682]
[1771695269032,0.0003222,68351.0,68346.0,0.07315682]
[1771695271193,0.0003222,68351.0,68344.0,0.07315851]
[1771695271427,0.0003222,68351.0,68345.0,0.07315754]
[1771695271807,0.0003222,68351.0,68346.0,0.07315707]
[1771695273731,0.0003222,68351.0,68348.0,0.07315468]
[1771695273933,0.02426167,68355.0,68348.0,0.07315468]
[1771695273934,0.07314755,68355.0,68348.0,0.07315468]
[1771695275944,0.07314677,68356.0,68348.0,0.07315468]
[1771695276493,0.0002,68355.0,68348.0,0.07315468]
[1771695276663,0.07334761,68355.0,68348.0,0.07315468]
[1771695285966,0.0002,68355.0,68347.0,0.000143]
[1771695286190,0.07315031,68353.0,68347.0,0.000143]
[1771695288190,0.07315893,68345.0,68341.0,0.0003448]
[1771695288407,0.02450896,68352.0,68341.0,0.07316155]
[1771695288408,0.02450896,68350.0,68341.0,0.07316155]
[1771695289028,0.07315435,68349.0,68341.0,0.07316155]
[1771695289309,0.07315528,68348.0,68341.0,0.07316155]
[1771695290042,0.07315528,68348.0,68341.0,0.07338155]
[1771695292951,0.07315695,68347.0,68341.0,0.00022]
[1771695298548,0.07315695,68347.0,68341.0,0.00122]
[1771695300343,0.07315695,68347.0,68341.0,0.00022]
[1771695300743,0.07315695,68347.0,68341.0,0.00122]
[1771695300920,0.07315695,68347.0,68341.0,0.00022]
[1771695301075,0.07315695,68347.0,68341.0,0.00122]
[1771695301518,0.07315695,68347.0,68341.0,0.00022]
[1771695301923,0.07315695,68347.0,68341.0,0.00122]
[1771695302095,0.07315695,68347.0,68341.0,0.00022]
[1771695302292,0.0001632,68349.0,68341.0,0.07338237]
[1771695302508,0.0002,68355.0,68342.0,0.29264152]
[1771695302676,0.0002,68355.0,68346.0,0.02392088]
[1771695302875,0.0002,68355.0,68351.0,0.07315089]
[1771695304148,0.0002,68355.0,68351.0,0.07515089]
[1771695304346,0.0002,68355.0,68351.0,0.07415089]
[1771695304794,0.0002,68355.0,68351.0,0.07315089]
[1771695305194,0.0002,68355.0,68352.0,0.07315066]
[1771695305477,0.0002,68355.0,68352.0,0.07300683]
[1771695306842,0.0002,68355.0,68351.0,0.07415145]
[1771695307064,0.0002,68355.0,68351.0,0.07315145]
[1771695307408,0.0002,68355.0,68351.0,0.07415145]
[1771695307536,0.0002,68355.0,68351.0,0.07315145]
[1771695307736,0.0002,68355.0,68352.0,0.001]
[1771695308113,0.0002,68355.0,68351.0,0.07415145]
[1771695308449,0.0002,68355.0,68351.0,0.07515145]
[1771695308673,0.0002,68355.0,68351.0,0.07415145]
[1771695309035,0.0002,68355.0,68351.0,0.07415147]
[1771695309236,0.0002,68355.0,68352.0,0.07315025]
[1771695309857,0.0002,68355.0,68351.0,0.07315147]
[1771695310068,0.0001896,68359.0,68353.0,0.07314895]
[1771695310266,0.0001896,68359.0,68353.0,0.0730051]
[1771695313479,0.02320663,68370.0,68325.0,0.03692276]
[1771695313680,0.0003496,68370.0,68350.0,0.02301703]
[1771695313907,0.07312832,68373.0,68365.0,0.07313591]
[1771695314938,0.07312913,68373.0,68365.0,0.07313591]
[1771695315553,0.07312967,68372.0,68365.0,0.07313591]
[1771695316092,0.0731305,68371.0,68364.0,0.07313775]
[1771695316298,0.0731305,68371.0,68363.0,0.07313878]
[1771695316821,0.07313222,68370.0,68362.0,0.07313983]
[1771695321657,0.02285703,68372.0,68342.0,0.43896579]
[1771695321856,0.07313362,68368.0,68353.0,0.07314943]
[1771695322072,0.09599897,68361.0,68353.0,0.07314943]
[1771695323163,0.07314194,68361.0,68353.0,0.07314943]
[1771695323522,0.07314234,68360.0,68353.0,0.07314943]
[1771695323732,0.07314194,68361.0,68353.0,0.07314943]
[1771695325146,0.07314112,68361.0,68354.0,0.07314785]
[1771695325353,0.07313958,68363.0,68353.0,0.07314866]
[1771695325632,0.07313958,68363.0,68355.0,0.07314679]
[1771695325861,0.07314027,68362.0,68355.0,0.07314679]
[1771695327646,0.07314027,68362.0,68354.0,0.07314831]
[1771695328162,0.07314027,68362.0,68355.0,0.07314738]
[1771695328876,0.07314262,68360.0,68352.0,0.07315001]
[1771695329074,0.07314431,68359.0,68351.0,0.07337093]
[1771695329424,0.07314262,68360.0,68351.0,0.07337093]
[1771695329850,0.07314328,68359.0,68352.0,0.07315074]
[1771695330133,0.07314328,68359.0,68355.0,0.00022]
[1771695330686,0.07314228,68360.0,68355.0,0.00022]
[1771695335675,0.07314228,68360.0,68355.0,0.00122]
[1771695336542,0.07314218,68360.0,68355.0,0.00122]
[1771695336719,0.09775921,68360.0,68355.0,0.00122]
[1771695336901,0.07314218,68360.0,68355.0,0.00122]
[1771695338117,0.07314319,68361.0,68355.0,0.00122]
[1771695338317,0.07314319,68361.0,68355.0,0.00022]
[1771695343216,0.0731504,68353.0,68351.0,0.00022]
[1771695343415,4.556e-05,68353.0,68351.0,0.00022]
[1771695343759,0.07314902,68354.0,68351.0,0.00022]
[1771695343967,0.07314708,68356.0,68351.0,0.00022]
[1771695345460,0.07314708,68356.0,68355.0,0.00022]
[1771695347108,0.07314901,68354.0,68351.0,0.00022]
[1771695349267,0.07314708,68356.0,68351.0,0.00022]
[1771695351102,0.07314708,68356.0,68351.0,0.000512]
[1771695354786,0.3161945,68359.0,68351.0,0.000512]
[1771695355138,0.0731485,68355.0,68351.0,0.000512]
[1771695359011,0.0731485,68356.0,68351.0,0.000512]
[1771695360458,0.0731476,68355.0,68351.0,0.000512]
[1771695362501,0.0733485,68356.0,68351.0,0.000512]
[1771695362502,0.0002,68356.0,68351.0,0.000512]
[1771695363620,0.07334657,68356.0,68351.0,0.000512]
[1771695364682,0.0002,68356.0,68351.0,0.000512]
[1771695365086,0.07334685,68356.0,68351.0,0.000512]
[1771695366518,0.07334685,68356.0,68349.0,0.02373566]
[1771695366959,0.07334685,68356.0,68348.0,0.07337466]
[1771695367163,0.07334685,68356.0,68351.0,0.00022]
[1771695367946,0.07334685,68356.0,68351.0,0.00122]
[1771695368137,0.07334685,68356.0,68351.0,0.00022]
[1771695369773,0.05894685,68356.0,68351.0,0.00022]
[1771695370591,0.07314569,68357.0,68351.0,0.00022]
[1771695370771,0.07314332,68359.0,68352.0,0.07315006]
[1771695370970,0.00036,68360.0,68354.0,0.07314655]
[1771695373642,0.00036,68360.0,68351.0,0.00022]
[1771695373839,0.14476388,68364.0,68357.0,0.07314459]
[1771695374042,0.02365998,68369.0,68357.0,0.07314459]
[1771695375528,0.07313812,68364.0,68357.0,0.07314459]
[1771695376889,0.24885721,68365.0,68357.0,0.02458095]
[1771695377935,0.17572,68365.0,68357.0,0.02458095]
[1771695378281,0.17572,68365.0,68359.0,0.07314232]
[1771695379286,0.17556164,68365.0,68359.0,0.07314232]
[1771695379904,0.17556164,68365.0,68360.0,0.06916024]
[1771695380118,0.15321232,68365.0,68361.0,0.07314044]
[1771695380317,0.15321232,68365.0,68362.0,0.07313911]
[1771695380664,0.23783491,68370.0,68362.0,0.07313911]
[1771695380846,0.073133,68369.0,68362.0,0.07313911]
[1771695381200,0.29250283,68376.0,68363.0,0.09771887]
[1771695381415,0.0730404,68372.0,68364.0,0.07313716]
[1771695382256,0.09678653,68375.0,68366.0,0.07313487]
[1771695382482,0.24880422,68377.0,68361.0,0.14724569]
[1771695382713,0.07312583,68376.0,68368.0,0.07313292]
[1771695383119,0.07312543,68376.0,68369.0,0.07313221]
[1771695383302,0.17568,68377.0,68366.0,0.09771611]
[1771695383510,0.07312683,68375.0,68367.0,0.07313452]
[1771695385209,0.17568,68377.0,68363.0,0.07313839]
[1771695385422,0.07313152,68370.0,68362.0,0.073139]
[1771695386183,0.07313332,68369.0,68362.0,0.07313975]
[1771695387020,0.07313152,68370.0,68362.0,0.07313975]
[1771695387447,0.07313152,68370.0,68362.0,0.07413975]
[1771695388250,0.07313152,68370.0,68362.0,0.07313975]
[1771695388881,0.07312788,68374.0,68362.0,0.02458095]
[1771695389282,0.07312788,68374.0,68365.0,0.0731363]
[1771695389283,0.07312856,68373.0,68365.0,0.0731363]
[1771695389810,0.07312856,68373.0,68366.0,0.07313567]
[1771695389963,0.0002,68375.0,68367.0,0.07313426]
[1771695389964,0.07332678,68375.0,68367.0,0.07313426]
[1771695390165,0.07312791,68374.0,68366.0,0.07313567]
[1771695391437,0.07312791,68374.0,68366.0,0.07413567]
[1771695391636,0.07312791,68374.0,68366.0,0.07313567]
[1771695391836,0.0002,68375.0,68369.0,0.07313244]
[1771695392142,0.0002,68375.0,68368.0,0.07313329]
[1771695392976,0.0002,68375.0,68369.0,0.07313246]
[1771695393313,0.07332664,68375.0,68368.0,0.07313346]
[1771695393516,0.07332664,68375.0,68367.0,0.02351484]
[1771695394488,0.07332664,68375.0,68369.0,0.001]
[1771695394670,0.07332664,68375.0,68367.0,0.02351484]
[1771695394881,0.07432664,68375.0,68367.0,0.02351484]
[1771695395102,0.07432664,68375.0,68366.0,0.09771464]
[1771695395335,0.07432664,68375.0,68367.0,0.07313469]
[1771695396173,0.07332664,68375.0,68367.0,0.07313469]
[1771695396555,0.0002,68375.0,68368.0,0.0731335]
[1771695396705,0.0002,68375.0,68369.0,0.07313204]
[1771695397565,0.0002,68375.0,68368.0,0.07313335]
[1771695399745,0.0002,68375.0,68369.0,0.07313235]
[1771695400134,0.0002,68375.0,68368.0,0.07313335]
[1771695400328,0.00316,68380.0,68368.0,0.29253038]
[1771695400536,0.07312194,68379.0,68371.0,0.07312947]
[1771695400759,0.07312194,68379.0,68370.0,0.07313149]
[1771695401392,0.07312194,68379.0,68372.0,0.07312862]
[1771695402735,0.07312362,68378.0,68370.0,0.07313149]
[1771695403160,0.07312662,68375.0,68367.0,0.07313381]
[1771695403355,0.09667004,68375.0,68367.0,0.07313381]
[1771695404118,0.07312732,68374.0,68367.0,0.07313381]
[1771695405628,0.07312435,68377.0,68370.0,0.07313126]
[1771695406949,0.07312317,68378.0,68370.0,0.07313126]
[1771695407716,0.07312317,68378.0,68371.0,0.07313024]
[1771695410184,0.0001873,68382.0,68366.0,0.00022]
[1771695410407,0.0001514,68391.0,68389.0,0.07299393]
[1771695410609,0.0001514,68391.0,68388.0,0.07311159]
[1771695410809,0.0001514,68391.0,68388.0,0.00011677]
[1771695411020,0.0001514,68391.0,68388.0,0.07322869]
[1771695411213,0.0001514,68391.0,68388.0,0.00011677]
[1771695411823,0.22743315,68395.0,68388.0,0.00011677]
[1771695412055,0.07310596,68394.0,68388.0,0.00011677]
[1771695412528,0.07310693,68393.0,68388.0,0.00011677]
[1771695412890,0.07310693,68393.0,68388.0,0.00111677]
[1771695413228,0.07310693,68393.0,68388.0,0.00011677]
[1771695413636,0.07310693,68393.0,68388.0,0.00111677]
[1771695413930,0.07310693,68393.0,68388.0,0.00011677]
[1771695415475,0.07310401,68396.0,68388.0,0.00111677]
[1771695415855,0.07310401,68396.0,68388.0,0.07422866]
[1771695416057,0.07310446,68397.0,68388.0,0.07422866]
[1771695416231,0.07310446,68397.0,68389.0,0.07311117]
[1771695416435,0.07310082,68399.0,68390.0,0.07311005]
[1771695416700,0.07310082,68399.0,68391.0,0.0731085]
[1771695417434,0.07310181,68398.0,68391.0,0.0731085]
[1771695417852,0.15763897,68400.0,68393.0,0.07310615]
[1771695418181,0.15432757,68407.0,68391.0,0.02456963]
[1771695418383,0.15432757,68407.0,68390.0,0.02300669]
[1771695418384,0.07309612,68404.0,68395.0,0.07310377]
[1771695418743,0.07309653,68403.0,68395.0,0.07310377]
[1771695419668,0.0730973,68402.0,68395.0,0.07310377]
[1771695420004,0.07309653,68403.0,68395.0,0.07310377]
[1771695420821,0.0730973,68402.0,68395.0,0.07310377]
[1771695421188,0.07309863,68401.0,68394.0,0.07310582]
[1771695421495,0.07310179,68398.0,68390.0,0.07326922]
[1771695421763,0.07310009,68400.0,68390.0,0.00016]
[1771695422175,0.07310009,68400.0,68392.0,0.073107]
[1771695422306,0.07310009,68400.0,68393.0,0.07310676]
[1771695422502,0.07309763,68402.0,68392.0,0.0731059]
[1771695422718,0.25096931,68403.0,68393.0,0.07310593]
[1771695422895,0.0730984,68401.0,68393.0,0.07310593]
[1771695423095,0.07309475,68405.0,68394.0,0.07310559]
[1771695424115,0.07309649,68403.0,68395.0,0.0731038]
[1771695424348,0.07309649,68403.0,68396.0,0.07310354]
[1771695424602,0.07309649,68403.0,68395.0,0.0731047]
[1771695424808,0.22742406,68403.0,68395.0,0.0731047]
[1771695425118,0.15432757,68403.0,68397.0,0.07310251]
[1771695425319,0.07309543,68404.0,68397.0,0.07310251]
[1771695425320,0.07309528,68404.0,68397.0,0.07310251]
[1771695426512,0.15432757,68407.0,68395.0,0.07310475]
[1771695426664,0.17884,68410.0,68402.0,0.07309621]
[1771695426863,0.17884,68410.0,68403.0,0.07309572]
[1771695427266,0.25192896,68410.0,68403.0,0.07309572]
[1771695427632,0.00316,68410.0,68398.0,0.31697415]
[1771695428259,0.00316,68410.0,68404.0,0.07309457]
[1771695428730,0.00316,68410.0,68402.0,0.07309717]
[1771695428930,0.00316,68410.0,68401.0,0.07309636]
[1771695428931,0.07309062,68409.0,68401.0,0.07309636]
[1771695429139,0.22831381,68408.0,68399.0,0.07309994]
[1771695429336,0.22831381,68408.0,68398.0,0.07309951]
[1771695429558,0.22831381,68408.0,68400.0,0.07309867]
[1771695431128,0.00316,68410.0,68392.0,0.07310796]
[1771695431268,0.00316,68410.0,68403.0,0.07309535]
[1771695431670,0.0762489,68410.0,68403.0,0.07309535]
[1771695432469,0.0002,68408.0,68402.0,0.07309712]
[1771695438308,0.0002,68408.0,68400.0,0.07309876]
[1771695438508,0.07309373,68406.0,68398.0,0.07310104]
[1771695438710,0.07309193,68407.0,68399.0,0.07310018]
[1771695439960,0.0002,68408.0,68397.0,0.00022]
[1771695440166,0.0002,68408.0,68404.0,0.07309459]
[1771695441094,0.0002,68408.0,68398.0,0.0248453]
[1771695441249,0.0002,68408.0,68407.0,0.07309193]
[1771695442903,0.0002,68408.0,68407.0,0.07409193]
[1771695443127,0.0002,68408.0,68407.0,0.07309193]
[1771695443826,0.0002,68408.0,68407.0,0.07409193]
[1771695445186,0.0002,68408.0,68407.0,0.07309193]
[1771695447390,0.0002,68408.0,68400.0,0.0248453]
[1771695447588,0.0002,68408.0,68403.0,0.07309573]
[1771695447952,0.0002,68408.0,68402.0,0.0730969]
[1771695448166,0.0002,68408.0,68396.0,0.29241191]
[1771695448167,0.02463387,68405.0,68396.0,0.29241191]
[1771695448394,0.02463387,68405.0,68399.0,0.07309843]
[1771695448629,0.15699446,68407.0,68399.0,0.07309843]
[1771695449031,0.23008655,68407.0,68399.0,0.07309843]
[1771695449230,0.15699446,68407.0,68399.0,0.07309843]
[1771695449651,0.15699446,68407.0,68400.0,0.07309939]
[1771695450735,0.07309294,68408.0,68400.0,0.07309939]
[1771695452395,0.09772677,68407.0,68399.0,0.07309843]
[1771695452622,0.15699446,68406.0,68400.0,0.07309936]
[1771695453175,0.09772677,68407.0,68400.0,0.07309936]
[1771695453499,0.02463387,68407.0,68400.0,0.07309936]
[1771695454059,0.00316,68410.0,68397.0,0.00022]
[1771695454264,0.00316,68410.0,68404.0,0.07309441]
[1771695454519,0.00316,68410.0,68398.0,0.0248453]
[1771695454874,0.00316,68410.0,68402.0,0.07309695]
[1771695455213,0.00316,68410.0,68404.0,0.07309433]
[1771695455371,0.0002,68408.0,68404.0,0.07309475]
[1771695456115,0.0002891,68412.0,68406.0,0.07309234]
[1771695457952,0.0733757,68412.0,68405.0,0.07309388]
[1771695458155,0.17728983,68412.0,68400.0,0.0734784]
[1771695458347,0.07309022,68409.0,68402.0,0.07309723]
[1771695460349,0.07308907,68410.0,68402.0,0.07309723]
[1771695462760,0.0002891,68412.0,68407.0,0.07309096]
[1771695462920,0.0002891,68412.0,68406.0,0.07309261]
[1771695467496,0.0002891,68412.0,68405.0,0.09651703]
[1771695467809,0.0002891,68412.0,68406.0,0.07309296]
[1771695468588,0.07308541,68415.0,68407.0,0.07309118]
[1771695468755,0.07308368,68415.0,68407.0,0.07309118]
[1771695470014,0.07308338,68415.0,68406.0,0.09651633]
[1771695471092,0.07308338,68415.0,68407.0,0.07309121]
[1771695471303,0.07308455,68414.0,68407.0,0.07309121]
[1771695471516,0.07308558,68413.0,68406.0,0.09651633]
[1771695472376,0.07308558,68413.0,68406.0,0.0730928]
[1771695475828,0.0238589,68418.0,68400.0,0.00038]
[1771695476030,0.15314183,68407.0,68400.0,0.07347914]
[1771695476829,0.0969506,68408.0,68400.0,0.07347914]
[1771695476949,0.0730917,68408.0,68401.0,0.07309833]
[1771695477893,0.07309013,68409.0,68404.0,0.00022]
[1771695478608,0.07308836,68411.0,68404.0,0.00022]
[1771695478609,0.07308766,68411.0,68404.0,0.00022]
[1771695479235,0.07308873,68410.0,68404.0,0.00022]
[1771695479971,0.0730899,68409.0,68404.0,0.00022]
[1771695480798,0.25008807,68412.0,68404.0,0.00022]
[1771695481577,0.07308766,68411.0,68404.0,0.00022]
[1771695481803,0.25008768,68412.0,68404.0,0.07331508]
[1771695482638,0.09694585,68412.0,68404.0,0.07331508]
[1771695482838,0.0238589,68412.0,68405.0,0.07309354]
[1771695483484,0.0730869,68412.0,68404.0,0.07331508]
[1771695489574,0.0730869,68412.0,68405.0,0.07309402]
[1771695490662,0.07308773,68411.0,68400.0,0.29277628]
[1771695490859,0.24602368,68411.0,68400.0,0.29277628]
[1771695491554,0.00016,68410.0,68404.0,0.07309476]
[1771695493506,0.00016,68410.0,68405.0,0.00022]
[1771695499805,0.07309048,68409.0,68402.0,0.07309683]
[1771695500543,0.07324895,68410.0,68402.0,0.07309683]
[1771695502307,0.07324895,68410.0,68402.0,0.07331683]
[1771695503496,0.07324895,68410.0,68403.0,0.07309601]
[1771695505427,0.07309213,68407.0,68402.0,0.00022]
[1771695505576,0.09683118,68407.0,68402.0,0.00022]
[1771695505771,0.07324944,68410.0,68402.0,0.07331645]
[1771695506025,0.00016,68410.0,68402.0,0.00022]
[1771695506735,0.00016,68410.0,68405.0,0.0730932]
[1771695517585,0.00016,68410.0,68406.0,0.07309278]
[1771695517765,0.00036,68410.0,68406.0,0.07309278]
[1771695533286,0.00036,68410.0,68405.0,0.07309205]
[1771695538990,0.00036,68410.0,68404.0,0.00022]
[1771695539488,0.00036,68410.0,68405.0,0.00022]
[1771695539719,0.02315028,68409.0,68398.0,0.29262335]
[1771695540197,0.02315028,68409.0,68402.0,0.07309662]
[1771695540998,0.02315028,68409.0,68403.0,0.07309526]
[1771695541136,0.02315028,68409.0,68404.0,0.07309503]
[1771695541751,0.00036,68410.0,68404.0,0.07309503]
[1771695544146,0.07308987,68409.0,68402.0,0.07309662]
[1771695544324,0.00036,68410.0,68403.0,0.07309553]
[1771695544465,0.00036,68410.0,68404.0,0.07309501]
[1771695546040,0.00036,68410.0,68404.0,0.07331501]
[1771695548518,0.00036,68410.0,68404.0,0.04623394]
[1771695553099,0.07309047,68409.0,68404.0,0.00022]
[1771695553252,0.0730935,68406.0,68398.0,0.07344797]
[1771695553457,0.00036,68410.0,68398.0,0.07344797]
[1771695553458,0.02266721,68408.0,68398.0,0.07344797]
[1771695553800,0.09576003,68407.0,68399.0,0.07310046]
[1771695553999,0.09575937,68407.0,68400.0,0.07309881]
[1771695556156,0.07309117,68408.0,68401.0,0.07309827]
[1771695556400,0.23225468,68409.0,68401.0,0.07309827]
[1771695556986,0.07309015,68409.0,68401.0,0.07309827]
[1771695557189,0.07309112,68408.0,68401.0,0.07309827]
[1771695557561,0.09626568,68410.0,68397.0,0.2926287]
[1771695557562,0.15916453,68407.0,68397.0,0.2926287]
[1771695557756,0.18183174,68407.0,68401.0,0.07309759]
[1771695558055,0.02266721,68406.0,68401.0,0.07309759]
[1771695559716,0.02266721,68406.0,68401.0,0.07331759]
[1771695563397,0.0730899,68409.0,68401.0,0.07331759]
[1771695563984,0.0730899,68409.0,68402.0,0.07309705]
[1771695564203,0.09575711,68409.0,68402.0,0.07309705]
[1771695565996,0.00036,68410.0,68404.0,0.07309446]
[1771695566480,0.00036,68410.0,68405.0,0.07309404]
[1771695566628,0.02279051,68415.0,68407.0,0.0730916]
[1771695566629,0.0001233,68415.0,68407.0,0.0730916]
[1771695567453,0.0730847,68414.0,68407.0,0.0730916]
[1771695568948,0.0730847,68414.0,68406.0,0.0730926]
[1771695569702,0.07308579,68413.0,68406.0,0.0730926]
[1771695573213,0.07328449,68414.0,68407.0,0.07309176]
[1771695574118,0.0002,68414.0,68407.0,0.07309176]
[1771695574268,0.07328525,68414.0,68406.0,0.07409098]
[1771695574474,0.07328525,68414.0,68406.0,0.07309098]
[1771695574852,0.07328525,68414.0,68407.0,0.001]
[1771695576353,0.07328525,68414.0,68406.0,0.07309098]
[1771695576554,0.07328525,68414.0,68406.0,0.07409098]
[1771695576983,0.07308559,68413.0,68406.0,0.07309098]
[1771695577391,0.07308559,68413.0,68407.0,0.001]
[1771695577599,0.07308559,68413.0,68406.0,0.07309098]
[1771695577955,0.0730877,68411.0,68406.0,0.001]
[1771695578162,0.0730877,68411.0,68403.0,0.07309543]
[1771695579378,0.0730877,68411.0,68406.0,0.001]
[1771695579776,0.0730877,68411.0,68403.0,0.07309543]
[1771695580294,0.07308881,68410.0,68403.0,0.07309543]
[1771695581973,0.07308794,68411.0,68402.0,0.0968755]
[1771695582595,0.07308794,68411.0,68403.0,0.0730962]
[1771695582814,0.001,68410.0,68403.0,0.0730962]
[1771695582969,0.07408879,68410.0,68403.0,0.0730962]
[1771695583213,0.07308879,68410.0,68403.0,0.0730962]
[1771695585386,0.07308841,68411.0,68403.0,0.0730962]
[1771695586204,0.07408882,68410.0,68403.0,0.0730962]
[1771695586417,0.07308882,68410.0,68403.0,0.0730962]
[1771695586792,0.07328882,68410.0,68403.0,0.0730962]